[Event "ESP-chT Honor Division 2022"]
[Site "Linares"]
[Date "2022.09.17"]
[Round "1.18"]
[White "Moreno Tejera, Emilio"]
[Black "Llorente Zaro, Alfonso"]
[Result "1/2-1/2"]
[ECO "C50"]
[WhiteElo "2411"]
[BlackElo "2448"]
[Annotator "ChessBase"]
[PlyCount "61"]
[EventDate "2022.09.17"]
[EventType "team-tourn"]
[EventCountry "ESP"]
[SourceTitle "playchess.com"]
[Source "ChessBase"]
[SourceQuality "1"]
[TimeControl "5400+30"]

1. e4 {[%emt 0:00:05]} e5 {[%emt 0:00:12]} 2. Nf3 {[%emt 0:00:22]} Nc6 {[%emt 0:00:11]} 3. Bc4 {[%emt 0:00:21]} Bc5 {[%emt 0:00:14]} 4. O-O {[%emt 0:00:29]} Nf6 {[%emt 0:00:46]} 5. d3 {[%emt 0:00:09]} d6 {[%emt 0:00:19]} 6. c3 {[%emt 0:00:37]} a6 {[%emt 0:00:38]} 7. Bb3 {[%emt 0:04:27]} Ba7 {[%emt 0:02:38]} 8. Nbd2 {[%emt 0:01:50]} h6 {[%emt 0:02:08]} 9. Re1 {[%emt 0:02:07]} O-O {[%emt 0:06:56]} 10. h3 {[%emt 0:01:58]} Re8 {[%emt 0:09:31]} 11. Nf1 {[%emt 0:02:45]} Be6 {[%emt 0:01:05]} 12. Bxe6 {[%emt 0:02:46]} Rxe6 {[%emt 0:00:07]} 13. Be3 {[%emt 0:00:04]} Bxe3 {[%emt 0:07:37]} 14. Nxe3 {[%emt 0:00:51]} Ne7 {[%emt 0:02:44]} 15. Qb3 {[%emt 0:13:11]} b6 {[%emt 0:08:26]} 16. Rad1 {[%emt 0:05:45]} Qd7 {[%emt 0:08:32]} 17. Nh4 {[%emt 0:09:01]} Rd8 {[%emt 0:11:02]} 18. Nhf5 {[%emt 0:24:03]} d5 {[%emt 0:12:40]} 19. Nxe7+ {[%emt 0:11:45]} Rxe7 {[%emt 0:00:31]} 20. exd5 {[%emt 0:03:29]} Nxd5 {[%emt 0:00:38]} 21. Nxd5 {[%emt 0:01:44]} Qxd5 {[%emt 0:00:06]} 22. Qxd5 {[%emt 0:00:51]} Rxd5 {[%emt 0:00:05]} 23. f4 {[%emt 0:00:49]} Kf8 {[%emt 0:08:01]} 24. fxe5 {[%emt 0:01:31]} Rdxe5 {[%emt 0:00:32]} 25. Rxe5 {[%emt 0:00:19]} Rxe5 {[%emt 0:00:05]} 26. Kf2 {[%emt 0:00:06]} Rf5+ {[%emt 0:01:52]} 27. Ke3 {[%emt 0:00:46]} Re5+ {[%emt 0:00:16]} 28. Kf3 {[%emt 0:00:17]} Rf5+ {[%emt 0:00:11]} 29. Ke3 {[%emt 0:00:06]} Re5+ {[%emt 0:00:05]} 30. Kf3 {[%emt 0:00:06]} Rf5+ {[%emt 0:00:11]} 31. Ke4 1/2-1/2

[Event "ESP-chT Honor Division 2022"]
[Site "Linares"]
[Date "2022.09.17"]
[Round "1.19"]
[White "Fedoseev, Vladimir"]
[Black "Van Foreest, Jorden"]
[Result "1/2-1/2"]
[ECO "E10"]
[WhiteElo "2685"]
[BlackElo "2691"]
[Annotator "ChessBase"]
[PlyCount "75"]
[EventDate "2022.09.17"]
[EventType "team-tourn"]
[EventCountry "ESP"]
[SourceTitle "playchess.com"]
[Source "ChessBase"]
[SourceQuality "1"]
[TimeControl "5400+30"]

1. d4 {[%emt 0:00:04]} Nf6 {[%emt 0:00:10]} 2. c4 {[%emt 0:00:08]} e6 {[%emt 0:00:12]} 3. Nf3 {[%emt 0:01:05]} d5 {[%emt 0:00:11]} 4. e3 {[%emt 0:02:21]} Be7 {[%emt 0:00:10]} 5. Nc3 {[%emt 0:00:11]} O-O {[%emt 0:01:06]} 6. a3 {[%emt 0:02:13]} b6 {[%emt 0:03:53]} 7. cxd5 {[%emt 0:01:48]} exd5 {[%emt 0:01:08]} 8. Be2 {[%emt 0:02:35]} c5 {[%emt 0:04:56]} 9. b3 {[%emt 0:03:17]} Nc6 {[%emt 0:02:48]} 10. O-O {[%emt 0:01:46]} cxd4 {[%emt 0:04:47]} 11. Nxd4 {[%emt 0:00:33]} Nxd4 {[%emt 0:00:23]} 12. Qxd4 {[%emt 0:00:27]} Bc5 {[%emt 0:02:03]} 13. Qd3 {[%emt 0:00:50]} a5 {[%emt 0:09:29]} 14. Rd1 {[%emt 0:10:05]} Qe7 {[%emt 0:05:29]} 15. Bb2 {[%emt 0:04:04]} Rd8 {[%emt 0:00:49]} 16. Bf3 {[%emt 0:04:38]} Ba6 {[%emt 0:11:01]} 17. Qf5 {[%emt 0:09:07]} Qe6 {[%emt 0:00:53]} 18. g4 {[%emt 0:02:50]} g6 {[%emt 0:05:25]} 19. Qxe6 {[%emt 0:01:03]} fxe6 {[%emt 0:00:09]} 20. g5 {[%emt 0:00:11]} Ne8 {[%emt 0:02:52]} 21. Na4 {[%emt 0:09:17]} Be7 {[%emt 0:12:53]} 22. Bg4 {[%emt 0:11:55]} Kf7 {[%emt 0:01:55]} 23. Rac1 {[%emt 0:00:10]} Bxg5 {[%emt 0:03:44]} 24. Rc6 {[%emt 0:08:54]} Rd6 {[%emt 0:00:26]} 25. Rdc1 {[%emt 0:00:04]} Bd8 {[%emt 0:05:35]} 26. Nxb6 {[%emt 0:04:58]} Bxb6 {[%emt 0:00:38]} 27. Rxd6 {[%emt 0:00:06]} Nxd6 {[%emt 0:00:05]} 28. Rc6 {[%emt 0:00:04]} h5 {[%emt 0:03:21]} 29. Rxd6 {[%emt 0:01:44]} hxg4 {[%emt 0:00:07]} 30. Rxb6 {[%emt 0:00:04]} g5 {[%emt 0:01:02]} 31. a4 {[%emt 0:02:32]} Bd3 {[%emt 0:01:37]} 32. Rb7+ {[%emt 0:01:01]} Kg6 {[%emt 0:00:07]} 33. Kg2 {[%emt 0:06:14]} Be4+ {[%emt 0:01:16]} 34. Kf1 {[%emt 0:02:57]} Rc8 {[%emt 0:00:05]} 35. Rg7+ {[%emt 0:02:30]} Kh5 {[%emt 0:00:35]} 36. Be5 {[%emt 0:01:24]} Bf3 {[%emt 0:01:38]} 37. Rc7 {[%emt 0:00:20]} Rxc7 {[%emt 0:01:43]} 38. Bxc7 {[%emt 0:00:02]} 1/2-1/2

[Event "ESP-chT Honor Division 2022"]
[Site "Linares"]
[Date "2022.09.17"]
[Round "1.20"]
[White "Nihal Sarin"]
[Black "Tabatabaei, M. Amin"]
[Result "0-1"]
[ECO "E04"]
[WhiteElo "2677"]
[BlackElo "2651"]
[Annotator "ChessBase"]
[PlyCount "56"]
[EventDate "2022.09.17"]
[EventType "team-tourn"]
[EventCountry "ESP"]
[SourceTitle "playchess.com"]
[Source "ChessBase"]
[SourceQuality "1"]
[TimeControl "5400+30"]

1. d4 {[%emt 0:00:26]} d5 {[%emt 0:00:07]} 2. c4 {[%emt 0:00:05]} e6 {[%emt 0:00:05]} 3. Nf3 {[%emt 0:00:04]} Nf6 {[%emt 0:00:06]} 4. g3 {[%emt 0:00:03]} dxc4 {[%emt 0:00:50]} 5. Bg2 {[%emt 0:00:06]} a6 {[%emt 0:00:06]} 6. O-O {[%emt 0:02:09]} Nc6 {[%emt 0:00:29]} 7. Qd2 {[%emt 0:01:39]} Bb4 {[%emt 0:11:07]} 8. Qc2 {[%emt 0:01:06]} b5 {[%emt 0:00:21]} 9. Ne5 {[%emt 0:01:08]} Nxe5 {[%emt 0:01:05]} 10. dxe5 {[%emt 0:00:04]} Nd5 {[%emt 0:00:08]} 11. Rd1 {[%emt 0:00:04]} Bd7 {[%emt 0:09:21]} 12. Nc3 {[%emt 0:01:11]} Bxc3 {[%emt 0:00:20]} 13. bxc3 {[%emt 0:00:04]} O-O {[%emt 0:00:20]} 14. Rd4 {[%emt 0:20:03]} Qe7 {[%emt 0:02:26]} 15. Rh4 {[%emt 0:06:28]} h6 {[%emt 0:07:44]} 16. e4 {[%emt 0:30:50]} Nb6 {[%emt 0:00:22]} 17. Qe2 {[%emt 0:00:50]} f5 {[%emt 0:29:28]} 18. exf5 {[%emt 0:14:24]} exf5 {[%emt 0:02:20]} 19. Bxh6 {[%emt 0:12:37]} gxh6 {[%emt 0:06:09]} 20. Rxh6 {[%emt 0:00:04]} Qg7 {[%emt 0:04:05]} 21. Qh5 {[%emt 0:00:10]} Be8 {[%emt 0:00:11]} 22. Qh4 {[%emt 0:00:04]} Rb8 {[%emt 0:02:08]} 23. Rd1 {[%emt 0:07:20]} Qxe5 {[%emt 0:10:30]} 24. Bc6 {[%emt 0:00:23]} Rf7 {[%emt 0:04:14]} 25. Bxe8 {[%emt 0:00:41]} Rxe8 {[%emt 0:00:03]} 26. Rd8 {[%emt 0:00:39]} Rxd8 {[%emt 0:01:26]} 27. Rg6+ {[%emt 0:00:45]} Rg7 {[%emt 0:00:20]} 28. Qxd8+ {[%emt 0:00:04]} Kh7 {[%emt 0:00:36]} 0-1

[Event "ESP-chT Honor Division 2022"]
[Site "Linares"]
[Date "2022.09.17"]
[Round "1.21"]
[White "Iturrizaga Bonelli, Eduardo"]
[Black "Hakobyan, Aram"]
[Result "1/2-1/2"]
[ECO "E06"]
[WhiteElo "2630"]
[BlackElo "2611"]
[Annotator "ChessBase"]
[PlyCount "139"]
[EventDate "2022.09.17"]
[EventType "team-tourn"]
[EventCountry "ESP"]
[SourceTitle "playchess.com"]
[Source "ChessBase"]
[SourceQuality "1"]
[TimeControl "5400+30"]

1. d4 {[%emt 0:00:04]} Nf6 {[%emt 0:00:27]} 2. c4 {[%emt 0:00:04]} e6 {[%emt 0:00:09]} 3. g3 {[%emt 0:00:16]} d5 {[%emt 0:00:16]} 4. Bg2 {[%emt 0:00:07]} Be7 {[%emt 0:01:24]} 5. Nf3 {[%emt 0:00:09]} O-O {[%emt 0:00:08]} 6. O-O {[%emt 0:00:05]} dxc4 {[%emt 0:00:04]} 7. Qa4 {[%emt 0:00:06]} a6 {[%emt 0:00:28]} 8. Qxc4 {[%emt 0:00:09]} b5 {[%emt 0:00:06]} 9. Qc2 {[%emt 0:00:03]} Bb7 {[%emt 0:00:05]} 10. Bd2 {[%emt 0:00:05]} Be4 {[%emt 0:02:12]} 11. Qc1 {[%emt 0:00:18]} c6 {[%emt 0:01:11]} 12. a4 {[%emt 0:00:05]} Nbd7 {[%emt 0:01:06]} 13. Nc3 {[%emt 0:00:18]} Bg6 {[%emt 0:00:12]} 14. Nh4 {[%emt 0:00:05]} Rc8 {[%emt 0:12:54]} 15. axb5 {[%emt 0:10:55]} axb5 {[%emt 0:00:49]} 16. Nxg6 {[%emt 0:03:29]} hxg6 {[%emt 0:00:11]} 17. Rd1 {[%emt 0:00:11]} b4 {[%emt 0:12:56]} 18. Na4 {[%emt 0:01:00]} c5 {[%emt 0:00:31]} 19. Qc4 {[%emt 0:05:23]} cxd4 {[%emt 0:26:02]} 20. Qxd4 {[%emt 0:00:42]} Qa5 {[%emt 0:01:43]} 21. Be1 {[%emt 0:33:37]} Qb5 {[%emt 0:01:49]} 22. Qa7 {[%emt 0:09:51]} Rfd8 {[%emt 0:07:00]} 23. e3 {[%emt 0:01:02]} Nd5 {[%emt 0:06:30]} 24. Bf1 {[%emt 0:06:50]} Qc6 {[%emt 0:00:02]} 25. Qa6 {[%emt 0:01:47]} Qc7 {[%emt 0:01:42]} 26. Qe2 {[%emt 0:05:25]} g5 {[%emt 0:06:17]} 27. Bd2 {[%emt 0:03:38]} Ne5 {[%emt 0:03:02]} 28. h3 {[%emt 0:12:33]} Qc2 {[%emt 0:02:17]} 29. Be1 {[%emt 0:04:08]} Qb3 {[%emt 0:00:19]} 30. Rd2 {[%emt 0:00:59]} Ra8 {[%emt 0:00:53]} 31. Qd1 {[%emt 0:01:06]} Qxd1 {[%emt 0:00:17]} 32. Rdxd1 {[%emt 0:00:03]} Nf3+ {[%emt 0:00:59]} 33. Kh1 {[%emt 0:01:43]} Nxe3 {[%emt 0:01:12]} 34. Rxd8+ {[%emt 0:00:27]} Bxd8 {[%emt 0:00:07]} 35. fxe3 {[%emt 0:00:30]} Nxe1 {[%emt 0:00:02]} 36. Rxe1 {[%emt 0:00:43]} Rxa4 {[%emt 0:00:02]} 37. Bc4 {[%emt 0:00:12]} Bf6 {[%emt 0:00:27]} 38. Re2 {[%emt 0:00:15]} g4 {[%emt 0:03:15]} 39. hxg4 {[%emt 0:00:25]} b3 {[%emt 0:00:15]} 40. Bxb3 {[%emt 0:00:13]} Rxg4 {[%emt 0:00:04]} 41. Kg2 {[%emt 0:01:25]} Rb4 {[%emt 0:00:36]} 42. Bd1 {[%emt 0:00:14]} Bxb2 {[%emt 0:00:05]} 43. Rc2 {[%emt 0:00:02]} Be5 {[%emt 0:00:16]} 44. Rc5 {[%emt 0:00:22]} Bd6 {[%emt 0:02:14]} 45. Rc6 {[%emt 0:00:03]} Rb2+ {[%emt 0:00:27]} 46. Bc2 {[%emt 0:00:22]} Kf8 {[%emt 0:01:39]} 47. Kf3 {[%emt 0:01:21]} Ke7 {[%emt 0:00:02]} 48. g4 {[%emt 0:00:19]} Rb4 {[%emt 0:00:45]} 49. Bd3 {[%emt 0:00:13]} g5 {[%emt 0:00:11]} 50. Rc4 {[%emt 0:00:09]} Rb3 {[%emt 0:00:03]} 51. Bc2 {[%emt 0:00:15]} Ra3 {[%emt 0:00:04]} 52. Ke2 {[%emt 0:00:17]} Ra2 {[%emt 0:02:03]} 53. Kf3 {[%emt 0:00:06]} Bb8 {[%emt 0:00:10]} 54. Rc3 {[%emt 0:00:44]} Kd6 {[%emt 0:00:38]} 55. Rd3+ {[%emt 0:00:32]} Ke5 {[%emt 0:00:20]} 56. Rc3 {[%emt 0:00:30]} Ba7 {[%emt 0:00:15]} 57. Bb1 {[%emt 0:02:16]} Rb2 {[%emt 0:00:51]} 58. Bc2 {[%emt 0:00:25]} f5 {[%emt 0:00:12]} 59. gxf5 {[%emt 0:00:33]} exf5 {[%emt 0:00:02]} 60. Rc8 {[%emt 0:00:17]} g4+ {[%emt 0:00:52]} 61. Kg3 {[%emt 0:00:26]} Bb8 {[%emt 0:01:41]} 62. Rc5+ {[%emt 0:01:04]} Ke6+ {[%emt 0:00:20]} 63. Kh4 {[%emt 0:00:13]} Be5 {[%emt 0:00:16]} 64. Rc6+ {[%emt 0:00:45]} Kd5 {[%emt 0:00:50]} 65. Rc8 {[%emt 0:00:03]} Bd6 {[%emt 0:01:36]} 66. Bxf5 {[%emt 0:00:54]} g3 {[%emt 0:00:02]} 67. Rc1 {[%emt 0:00:29]} g2 {[%emt 0:00:53]} 68. Kh3 {[%emt 0:00:13]} Bc5 {[%emt 0:00:17]} 69. Rg1 {[%emt 0:00:06]} Bxe3 {[%emt 0:01:00]} 70. Rxg2 {[%emt 0:00:05]} 1/2-1/2

[Event "ESP-chT Honor Division 2022"]
[Site "Linares"]
[Date "2022.09.17"]
[Round "1.22"]
[White "Arizmendi Martinez, Julen Luis"]
[Black "Yuffa, Daniil"]
[Result "1/2-1/2"]
[ECO "E54"]
[WhiteElo "2488"]
[BlackElo "2600"]
[Annotator "ChessBase"]
[PlyCount "74"]
[EventDate "2022.09.17"]
[EventType "team-tourn"]
[EventCountry "ESP"]
[SourceTitle "playchess.com"]
[Source "ChessBase"]
[SourceQuality "1"]
[TimeControl "5400+30"]

1. d4 {[%emt 0:00:11]} Nf6 {[%emt 0:00:27]} 2. c4 {[%emt 0:00:46]} e6 {[%emt 0:00:07]} 3. Nc3 {[%emt 0:01:17]} Bb4 {[%emt 0:00:07]} 4. e3 {[%emt 0:00:39]} O-O {[%emt 0:00:12]} 5. Bd3 {[%emt 0:01:12]} d5 {[%emt 0:00:27]} 6. Nf3 {[%emt 0:04:31]} dxc4 {[%emt 0:00:54]} 7. Bxc4 {[%emt 0:00:14]} c5 {[%emt 0:00:06]} 8. O-O {[%emt 0:09:21]} cxd4 {[%emt 0:00:31]} 9. exd4 {[%emt 0:01:28]} b6 {[%emt 0:00:09]} 10. Re1 {[%emt 0:13:19]} Bb7 {[%emt 0:01:02]} 11. Bd3 {[%emt 0:03:00]} Nbd7 {[%emt 0:02:59]} 12. Bg5 {[%emt 0:15:25]} h6 {[%emt 0:05:34]} 13. Bh4 {[%emt 0:02:49]} Re8 {[%emt 0:12:20]} 14. Rc1 {[%emt 0:05:07]} a6 {[%emt 0:01:13]} 15. Ne5 {[%emt 0:18:48]} Be7 {[%emt 0:05:51]} 16. a4 {[%emt 0:02:59]} Rc8 {[%emt 0:06:49]} 17. Qe2 {[%emt 0:02:20]} Nxe5 {[%emt 0:05:39]} 18. dxe5 {[%emt 0:00:04]} Nd5 {[%emt 0:02:25]} 19. Bxe7 {[%emt 0:00:28]} Nxc3 {[%emt 0:04:28]} 20. Rxc3 {[%emt 0:04:01]} Qd5 {[%emt 0:04:17]} 21. Be4 {[%emt 0:02:20]} Qxe4 {[%emt 0:00:46]} 22. Qxe4 {[%emt 0:01:36]} Bxe4 {[%emt 0:00:07]} 23. Rxe4 {[%emt 0:02:50]} Rxc3 {[%emt 0:00:06]} 24. bxc3 {[%emt 0:00:04]} Rxe7 {[%emt 0:00:04]} 25. Rb4 {[%emt 0:02:37]} Rb7 {[%emt 0:04:02]} 26. Kf1 {[%emt 0:01:55]} a5 {[%emt 0:09:46]} 27. Rc4 {[%emt 0:01:28]} g5 {[%emt 0:01:16]} 28. Ke2 {[%emt 0:02:06]} b5 {[%emt 0:02:01]} 29. Rc5 {[%emt 0:00:47]} bxa4 {[%emt 0:00:22]} 30. Rxa5 {[%emt 0:00:11]} Rb2+ {[%emt 0:00:16]} 31. Ke3 {[%emt 0:00:23]} Ra2 {[%emt 0:02:42]} 32. c4 {[%emt 0:00:48]} Kg7 {[%emt 0:00:22]} 33. c5 {[%emt 0:00:52]} Kg6 {[%emt 0:01:38]} 34. Kd3 {[%emt 0:00:56]} Ra1 {[%emt 0:03:07]} 35. Kd2 {[%emt 0:00:18]} Ra2+ {[%emt 0:00:44]} 36. Kd3 {[%emt 0:00:45]} Ra1 {[%emt 0:00:25]} 37. Kd2 {[%emt 0:00:19]} Ra2+ {[%emt 0:01:34]} 1/2-1/2

[Event "ESP-chT Honor Division 2022"]
[Site "Linares"]
[Date "2022.09.17"]
[Round "1.23"]
[White "Ibarra Jerez, Jose Carlos"]
[Black "Sos Andreu, Eric"]
[Result "1/2-1/2"]
[ECO "B10"]
[WhiteElo "2570"]
[BlackElo "2358"]
[Annotator "ChessBase"]
[PlyCount "107"]
[EventDate "2022.09.17"]
[EventType "team-tourn"]
[EventCountry "ESP"]
[SourceTitle "playchess.com"]
[Source "ChessBase"]
[SourceQuality "1"]
[TimeControl "5400+30"]

1. e4 {[%emt 0:01:17]} c6 {[%emt 0:00:20]} 2. Nf3 {[%emt 0:00:51]} d5 {[%emt 0:00:44]} 3. d3 {[%emt 0:00:20]} dxe4 {[%emt 0:06:59]} 4. dxe4 {[%emt 0:00:36]} Qxd1+ {[%emt 0:00:23]} 5. Kxd1 {[%emt 0:00:13]} Nf6 {[%emt 0:00:21]} 6. Nbd2 {[%emt 0:00:46]} g6 {[%emt 0:13:47]} 7. Ne5 {[%emt 0:01:08]} Nbd7 {[%emt 0:05:51]} 8. Nd3 {[%emt 0:03:02]} Bh6 {[%emt 0:05:12]} 9. f3 {[%emt 0:04:33]} O-O {[%emt 0:02:04]} 10. a4 {[%emt 0:01:32]} a5 {[%emt 0:06:50]} 11. b3 {[%emt 0:10:06]} b6 {[%emt 0:08:49]} 12. Ba3 {[%emt 0:06:07]} Re8 {[%emt 0:02:20]} 13. c3 {[%emt 0:06:12]} Ba6 {[%emt 0:03:45]} 14. Kc2 {[%emt 0:01:48]} e5 {[%emt 0:01:11]} 15. g3 {[%emt 0:10:13]} Bf8 {[%emt 0:05:56]} 16. Nb2 {[%emt 0:02:33]} Bxf1 {[%emt 0:08:28]} 17. Rhxf1 {[%emt 0:00:50]} b5 {[%emt 0:00:59]} 18. Bxf8 {[%emt 0:02:58]} Kxf8 {[%emt 0:00:50]} 19. Ra2 {[%emt 0:02:27]} Nc5 {[%emt 0:06:12]} 20. Rfa1 {[%emt 0:12:06]} Rad8 {[%emt 0:04:15]} 21. axb5 {[%emt 0:04:56]} cxb5 {[%emt 0:00:22]} 22. Rxa5 {[%emt 0:01:32]} Rxd2+ {[%emt 0:00:16]} 23. Kxd2 {[%emt 0:00:07]} Nxb3+ {[%emt 0:00:03]} 24. Kc2 {[%emt 0:00:21]} Nxa1+ {[%emt 0:00:08]} 25. Rxa1 {[%emt 0:00:05]} Nd7 {[%emt 0:05:35]} 26. Ra7 {[%emt 0:02:56]} Nc5 {[%emt 0:00:44]} 27. Ra5 {[%emt 0:03:56]} Rb8 {[%emt 0:04:09]} 28. h4 {[%emt 0:00:49]} Ke7 {[%emt 0:01:14]} 29. Nc4 {[%emt 0:01:25]} Nd7 {[%emt 0:04:45]} 30. Ne3 {[%emt 0:01:22]} Kd6 {[%emt 0:00:22]} 31. Nd5 {[%emt 0:01:08]} Nc5 {[%emt 0:00:35]} 32. Ne3 {[%emt 0:04:13]} h5 {[%emt 0:00:30]} 33. Ra7 {[%emt 0:00:32]} Rb7 {[%emt 0:00:27]} 34. Ra8 {[%emt 0:00:15]} Ke6 {[%emt 0:01:22]} 35. Re8+ {[%emt 0:02:40]} Kd6 {[%emt 0:00:48]} 36. Rd8+ {[%emt 0:03:37]} Rd7 {[%emt 0:00:43]} 37. Rb8 {[%emt 0:00:35]} Rb7 {[%emt 0:00:06]} 38. Ra8 {[%emt 0:01:57]} Ke6 {[%emt 0:00:22]} 39. Rc8 {[%emt 0:01:39]} Kd6 {[%emt 0:00:15]} 40. Nd5 {[%emt 0:00:29]} Ra7 {[%emt 0:01:47]} 41. Nb4 {[%emt 0:00:29]} Rc7 {[%emt 0:00:22]} 42. Rb8 {[%emt 0:00:30]} Rb7 {[%emt 0:00:16]} 43. Ra8 {[%emt 0:00:29]} Rc7 {[%emt 0:00:46]} 44. Nd5 {[%emt 0:00:56]} Rb7 {[%emt 0:00:09]} 45. Kd2 {[%emt 0:00:31]} Nb3+ {[%emt 0:00:37]} 46. Ke3 {[%emt 0:00:16]} Nc5 {[%emt 0:00:02]} 47. g4 {[%emt 0:01:06]} hxg4 {[%emt 0:00:57]} 48. fxg4 {[%emt 0:00:01]} f5 {[%emt 0:00:13]} 49. Rd8+ {[%emt 0:01:16]} Rd7 {[%emt 0:00:45]} 50. Rxd7+ {[%emt 0:00:34]} Nxd7 {[%emt 0:00:06]} 51. h5 {[%emt 0:02:06]} f4+ {[%emt 0:01:18]} 52. Kf3 {[%emt 0:00:09]} g5 {[%emt 0:00:36]} 53. h6 {[%emt 0:01:06]} Nf8 {[%emt 0:00:05]} 54. Nf6 {[%emt 0:02:22]} 1/2-1/2

[Event "ESP-chT Honor Division 2022"]
[Site "Linares"]
[Date "2022.09.17"]
[Round "1.24"]
[White "Garcia Martin, Marta"]
[Black "Batsiashvili, Nino"]
[Result "1/2-1/2"]
[ECO "B01"]
[WhiteElo "2325"]
[BlackElo "2477"]
[Annotator "ChessBase"]
[PlyCount "136"]
[EventDate "2022.09.17"]
[EventType "team-tourn"]
[EventCountry "ESP"]
[SourceTitle "playchess.com"]
[Source "ChessBase"]
[SourceQuality "1"]
[TimeControl "5400+30"]

1. e4 {[%emt 0:00:04]} d5 {[%emt 0:00:03]} 2. exd5 {[%emt 0:00:10]} Qxd5 {[%emt 0:00:04]} 3. Nf3 {[%emt 0:04:20]} Nf6 {[%emt 0:00:46]} 4. d4 {[%emt 0:02:44]} Bg4 {[%emt 0:02:31]} 5. Be2 {[%emt 0:00:14]} e6 {[%emt 0:01:42]} 6. h3 {[%emt 0:03:24]} Bh5 {[%emt 0:03:52]} 7. O-O {[%emt 0:12:02]} Nc6 {[%emt 0:01:51]} 8. c4 {[%emt 0:04:32]} Qd7 {[%emt 0:01:03]} 9. Be3 {[%emt 0:01:54]} Be7 {[%emt 0:07:11]} 10. Nc3 {[%emt 0:25:11]} Rd8 {[%emt 0:05:14]} 11. g4 {[%emt 0:16:08]} Bg6 {[%emt 0:00:21]} 12. Qa4 {[%emt 0:00:50]} Ne4 {[%emt 0:03:45]} 13. Rfd1 {[%emt 0:03:48]} O-O {[%emt 0:02:46]} 14. Nxe4 {[%emt 0:06:50]} Bxe4 {[%emt 0:00:02]} 15. Qb3 {[%emt 0:00:14]} Nb4 {[%emt 0:05:18]} 16. Rac1 {[%emt 0:06:16]} a5 {[%emt 0:00:13]} 17. Ne5 {[%emt 0:05:58]} Qe8 {[%emt 0:01:59]} 18. Bf4 {[%emt 0:00:21]} f6 {[%emt 0:12:43]} 19. Nf3 {[%emt 0:00:12]} e5 {[%emt 0:05:10]} 20. Bg3 {[%emt 0:01:08]} Qc6 {[%emt 0:09:30]} 21. c5+ {[%emt 0:02:40]} Bd5 {[%emt 0:01:22]} 22. Bc4 {[%emt 0:00:55]} e4 {[%emt 0:01:28]} 23. Bxd5+ {[%emt 0:01:04]} Nxd5 {[%emt 0:02:59]} 24. Nd2 {[%emt 0:00:50]} f5 {[%emt 0:00:13]} 25. gxf5 {[%emt 0:00:32]} Bg5 {[%emt 0:00:30]} 26. Rc2 {[%emt 0:00:35]} Bxd2 {[%emt 0:01:02]} 27. Rcxd2 {[%emt 0:00:30]} Rxf5 {[%emt 0:00:43]} 28. Qc2 {[%emt 0:00:30]} Re8 {[%emt 0:03:06]} 29. Re1 {[%emt 0:00:20]} Nb4 {[%emt 0:04:48]} 30. Qc4+ {[%emt 0:00:41]} Kf8 {[%emt 0:01:08]} 31. d5 {[%emt 0:00:25]} Rxd5 {[%emt 0:00:11]} 32. Rxd5 {[%emt 0:00:23]} Qxd5 {[%emt 0:00:07]} 33. Qxd5 {[%emt 0:00:31]} Nxd5 {[%emt 0:00:02]} 34. c6 {[%emt 0:00:07]} bxc6 {[%emt 0:00:27]} 35. Rc1 {[%emt 0:00:06]} e3 {[%emt 0:02:27]} 36. fxe3 {[%emt 0:00:12]} Rxe3 {[%emt 0:00:04]} 37. Kf2 {[%emt 0:00:18]} Re6 {[%emt 0:01:01]} 38. Rc5 {[%emt 0:00:49]} Ke7 {[%emt 0:04:13]} 39. Rxa5 {[%emt 0:00:38]} g5 {[%emt 0:01:44]} 40. Ra8 {[%emt 0:01:30]} Rf6+ {[%emt 0:00:27]} 41. Ke2 {[%emt 0:00:32]} Rh6 {[%emt 0:01:55]} 42. Rg8 {[%emt 0:00:22]} Rxh3 {[%emt 0:00:27]} 43. Rxg5 {[%emt 0:00:24]} Kf6 {[%emt 0:00:37]} 44. Rg8 {[%emt 0:00:11]} h5 {[%emt 0:05:50]} 45. Rf8+ {[%emt 0:00:54]} Kg5 {[%emt 0:01:28]} 46. Kf2 {[%emt 0:00:31]} h4 {[%emt 0:00:09]} 47. Be5 {[%emt 0:00:12]} Rh1 {[%emt 0:01:16]} 48. Rf7 {[%emt 0:00:52]} Rc1 {[%emt 0:02:00]} 49. Kg2 {[%emt 0:00:33]} Ne3+ {[%emt 0:01:37]} 50. Kh3 {[%emt 0:00:30]} Rh1+ {[%emt 0:01:14]} 51. Bh2 {[%emt 0:00:03]} Nf1 {[%emt 0:00:41]} 52. Rg7+ {[%emt 0:00:56]} Kf5 {[%emt 0:00:42]} 53. Kg2 {[%emt 0:00:32]} Rxh2+ {[%emt 0:00:05]} 54. Kxf1 {[%emt 0:00:03]} Rxb2 {[%emt 0:01:37]} 55. Rxc7 {[%emt 0:00:51]} h3 {[%emt 0:00:14]} 56. Kg1 {[%emt 0:00:32]} Rc2 {[%emt 0:00:10]} 57. a4 {[%emt 0:00:29]} Ke5 {[%emt 0:00:35]} 58. Rh7 {[%emt 0:00:30]} Ra2 {[%emt 0:01:05]} 59. Rh5+ {[%emt 0:00:32]} Kd4 {[%emt 0:00:21]} 60. Rxh3 {[%emt 0:00:15]} Kc4 {[%emt 0:01:50]} 61. Kf1 {[%emt 0:00:34]} Rd2 {[%emt 0:00:17]} 62. Ke1 {[%emt 0:00:33]} Rd5 {[%emt 0:00:01]} 63. a5 {[%emt 0:00:39]} Kb5 {[%emt 0:00:18]} 64. Rc3 {[%emt 0:00:28]} c5 {[%emt 0:00:55]} 65. Ra3 {[%emt 0:00:26]} Kb4 {[%emt 0:00:37]} 66. Ra1 {[%emt 0:00:18]} Rh5 {[%emt 0:00:41]} 67. Kd2 {[%emt 0:00:25]} Rh2+ {[%emt 0:00:11]} 68. Ke3 {[%emt 0:00:37]} Rh7 {[%emt 0:00:18]} 1/2-1/2